fUSD/lending_fUSD_20250110
["ID","MTS","AMOUNT","RATE_DAILY","PERIOD"]
[348392087,1736500259053,-500.0,0.00011368,2]
[348392088,1736500259062,-515.94,0.00011368,2]
[348392089,1736500259071,-699.66,0.00011368,2]
[348392090,1736500259081,-241.42796267,0.00011368,2]
[348392091,1736500259091,-500.0,0.00011368,2]
[348392092,1736500259100,-780.6,0.00011368,2]
[348392093,1736500259113,-500.0,0.00011368,2]
[348392094,1736500259122,-500.0,0.00011368,2]
[348392095,1736500259132,-618.37,0.00011368,2]
[348392096,1736500259142,-798.41,0.00011368,2]
[348392097,1736500259151,-500.0,0.00011368,2]
[348392098,1736500259161,-780.76,0.00011368,2]
[348392099,1736500259171,-500.0,0.00011368,2]
[348392100,1736500259181,-839.05,0.00011368,2]
[348392101,1736500259191,-567.04,0.00011368,2]
[348392102,1736500259201,-500.0,0.00011368,2]
[348392103,1736500259211,-722.12,0.00011368,2]
[348392104,1736500259221,-727.02,0.00011368,2]
[348392105,1736500259230,-500.0,0.00011368,2]
[348392106,1736500259240,-799.7,0.00011368,2]
[348392107,1736500259251,-573.06,0.00011368,2]
[348392108,1736500259261,-541.26,0.00011368,2]
[348392109,1736500259270,-795.35,0.00011368,2]
[348392110,1736500259280,-700.8,0.00011368,2]
[348392111,1736500259290,-662.09,0.00011368,2]
[348392112,1736500259299,-500.0,0.00011368,2]
[348392113,1736500259309,-1084.74,0.00011368,2]
[348392114,1736500259320,-624.1,0.00011368,2]
[348392115,1736500259330,-630.17,0.00011368,2]
[348392116,1736500259340,-500.0,0.00011368,2]
[348392117,1736500259350,-773.65,0.00011368,2]
[348392118,1736500259360,-941.95,0.00011368,2]
[348392119,1736500259370,-500.0,0.00011368,2]
[348392120,1736500259380,-606.38,0.00011368,2]
[348392121,1736500259390,-741.93,0.00011368,2]
[348392122,1736500259399,-3198.72,0.00011368,2]
[348392123,1736500259409,-500.0,0.00011368,2]
[348392124,1736500259419,-924.89,0.00011368,2]
[348392125,1736500259428,-1983.31,0.00011368,2]
[348392126,1736500259438,-878.81,0.00011368,2]
[348392127,1736500259447,-2797.4,0.00011368,2]
[348392128,1736500259458,-660.89,0.00011368,2]
[348392129,1736500259468,-806.13,0.00011368,2]
[348392130,1736500259478,-1243.22,0.00011368,2]
[348392131,1736500259489,-500.0,0.00011368,2]
[348392132,1736500259499,-828.33,0.00011368,2]
[348392133,1736500259509,-1719.05,0.00011368,2]
[348392134,1736500259519,-874.32,0.00011368,2]
[348392135,1736500259529,-2691.14,0.00011368,2]
[348392136,1736500259538,-714.58,0.00011368,2]
[348392137,1736500259548,-1219.22,0.00011368,2]
[348392138,1736500259557,-500.0,0.00011368,2]
[348392139,1736500259567,-500.0,0.00011368,2]
[348392140,1736500259577,-876.12,0.00011368,2]
[348392141,1736500259587,-605.63,0.00011368,2]
[348392142,1736500259598,-500.0,0.00011368,2]
[348392143,1736500259608,-590.85,0.00011368,2]
[348392144,1736500259618,-500.0,0.00011368,2]
[348392145,1736500259629,-2537.41,0.00011368,2]
[348392146,1736500259638,-935.44,0.00011368,2]
[348392147,1736500259648,-704.75,0.00011368,2]
[348392148,1736500259658,-500.0,0.00011368,2]
[348392149,1736500259667,-575.78,0.00011368,2]
[348392150,1736500259678,-500.0,0.00011368,2]
[348392151,1736500259688,-635.55,0.00011368,2]
[348392152,1736500259699,-500.0,0.00011368,2]
[348392153,1736500259708,-164.495869,0.00011368,2]
[348392154,1736500259718,-755.21,0.00011368,2]
[348392155,1736500259727,-164.495869,0.00011368,2]
[348392156,1736500259738,-925.95,0.00011368,2]
[348392157,1736500259747,-855.59,0.00011368,2]
[348392158,1736500259757,-500.0,0.00011368,2]
[348392159,1736500259767,-1110.51,0.00011368,2]
[348392160,1736500259777,-500.0,0.00011368,2]
[348392161,1736500259787,-616.02,0.00011368,2]
[348392162,1736500259797,-675.22,0.00011368,2]
[348392163,1736500259807,-564.66,0.00011368,2]
[348392164,1736500259817,-657.44,0.00011368,2]
[348392165,1736500259827,-2479.92,0.00011368,2]
[348392166,1736500259836,-1002.37,0.00011368,2]
[348392167,1736500259846,-500.0,0.00011368,2]
[348392168,1736500259855,-656.74,0.00011368,2]
[348392169,1736500259866,-519.3,0.00011368,2]
[348392170,1736500259876,-500.0,0.00011368,2]
[348392171,1736500259885,-500.0,0.00011368,2]
[348392172,1736500259895,-1068.96,0.00011368,2]
[348392173,1736500259904,-642.39577012,0.00011368,2]
[348392174,1736500259914,-906.27,0.00011369,2]
[348392175,1736500259923,-778.52,0.00011369,2]
[348392176,1736500259933,-1187.66,0.00011369,2]
[348392177,1736500259943,-1232.26,0.00011369,2]
[348392178,1736500259953,-1701.47,0.00011369,2]
[348392179,1736500259963,-1021.49,0.00011369,2]
[348392180,1736500259973,-3374.65,0.00011369,2]
[348392181,1736500259984,-1512.01,0.00011369,2]
[348392182,1736500259994,-231.71210857,0.00011369,2]
[348392183,1736500260004,-1000.0,0.00011398,2]
[348392184,1736500260014,-17103.04222898,0.0001143,2]
[348392185,1736500260024,-160.78282822,0.00011433,2]
[348392186,1736500260034,-1115.60265148,0.00011433,2]
[348392187,1736500260044,-3711.70775994,0.00011452,2]
[348392188,1736500260054,-540.27,0.00011457,2]
[348392189,1736500260064,-500.0,0.00011499,2]
[348392190,1736500260074,-200.0,0.000115,2]
[348392191,1736500260084,-269.833364,0.000115,2]
[348392192,1736500260094,-75000.0,0.000115,6]
[348392193,1736500260104,-2751.0,0.00011507,2]
[348392194,1736500260114,-500.0,0.00011534,2]
[348392195,1736500260124,-150.0,0.00011538,2]
[348392196,1736500260134,-207.883684,0.00011542,2]
[348392197,1736500260144,-153.726181,0.00011542,2]
[348392198,1736500260154,-170.77756,0.00011542,2]
[348392199,1736500260165,-3711.70775994,0.00011555,2]
[348392200,1736500260175,-500.0,0.00011636,2]
[348392201,1736500260185,-500.0,0.00011638,2]
[348392202,1736500260195,-500.0,0.00011639,2]
[348392203,1736500260206,-530.0,0.00011639,2]
[348392204,1736500260216,-500.0,0.00011639,2]
[348392205,1736500260226,-624.9,0.00011639,2]
[348392206,1736500260236,-500.0,0.00011639,2]
[348392207,1736500260246,-582.78,0.00011639,2]
[348392208,1736500260255,-500.0,0.00011639,2]
[348392209,1736500260265,-500.0,0.00011639,2]
[348392210,1736500260275,-500.0,0.00011639,2]
[348392211,1736500260284,-500.0,0.00011639,2]
[348392212,1736500260295,-503.74,0.00011639,2]
[348392213,1736500260305,-500.0,0.00011639,2]
[348392214,1736500260315,-678.75,0.00011639,2]
[348392215,1736500260325,-500.0,0.00011639,2]
[348392216,1736500260334,-500.0,0.00011639,2]
[348392217,1736500260344,-500.0,0.00011639,2]
[348392218,1736500260354,-500.0,0.00011639,2]
[348392219,1736500260364,-500.0,0.00011639,2]
[348392220,1736500260375,-500.0,0.00011639,2]
[348392221,1736500260384,-500.0,0.00011639,2]
[348392222,1736500260394,-500.0,0.00011639,2]
[348392223,1736500260403,-500.0,0.00011639,2]
[348392224,1736500260413,-500.0,0.00011639,2]
[348392225,1736500260423,-500.0,0.00011639,2]
[348392226,1736500260432,-629.70494704,0.00011639,2]
[348392227,1736500260442,-500.0,0.00011639,2]
[348392228,1736500260452,-482.77430843,0.00011639,2]
[348392229,1736500260462,-500.0,0.00011639,2]
[348392230,1736500260472,-586.22,0.00011639,2]
[348392231,1736500260482,-679.11,0.00011639,2]
[348392232,1736500260493,-500.0,0.00011639,2]
[348392233,1736500260503,-500.0,0.00011639,2]
[348392234,1736500260512,-500.0,0.00011639,2]
[348392235,1736500260522,-500.0,0.00011639,2]
[348392236,1736500260532,-729.3,0.00011639,2]
[348392237,1736500260541,-563.4,0.00011639,2]
[348392238,1736500260551,-774.57,0.00011639,2]
[348392239,1736500260560,-706.5,0.00011639,2]
[348392240,1736500260570,-500.0,0.00011639,2]
[348392241,1736500260579,-500.0,0.00011639,2]
[348392242,1736500260589,-2056.74,0.00011639,2]
[348392243,1736500260599,-500.0,0.00011639,2]
[348392244,1736500260608,-500.0,0.00011639,2]
[348392245,1736500260618,-891.86,0.00011639,2]
[348392246,1736500260628,-1197.74,0.00011639,2]
[348392247,1736500260638,-500.0,0.00011639,2]
[348392248,1736500260648,-500.0,0.00011639,2]
[348392249,1736500260657,-940.96,0.00011639,2]
[348392250,1736500260667,-1578.38,0.00011639,2]
[348392251,1736500260677,-500.0,0.00011639,2]
[348392252,1736500260687,-1107.84,0.00011639,2]
[348392253,1736500260698,-500.0,0.00011639,2]
[348392254,1736500260708,-500.0,0.00011639,2]
[348392255,1736500260717,-664.6,0.00011639,2]
[348392256,1736500260727,-1029.02,0.00011639,2]
[348392257,1736500260736,-500.0,0.00011639,2]
[348392258,1736500260746,-1958.17,0.00011639,2]
[348392259,1736500260755,-1470.14,0.00011639,2]
[348392260,1736500260765,-2548.27,0.00011639,2]
[348392261,1736500260774,-6603.5,0.00011639,2]
[348392262,1736500260783,-1391.4,0.00011639,2]
[348392263,1736500260792,-500.0,0.00011639,2]
[348392264,1736500260801,-500.0,0.00011639,2]
[348392265,1736500260811,-792.05,0.00011639,2]
[348392266,1736500260820,-695.08,0.00011639,2]
[348392267,1736500260829,-885.13,0.00011639,2]
[348392268,1736500260839,-1000.7,0.00011639,2]
[348392269,1736500260848,-1553.42,0.00011639,2]
[348392270,1736500260857,-500.0,0.00011639,2]
[348392271,1736500260867,-809.08,0.00011639,2]
[348392272,1736500260876,-1191.43,0.00011639,2]
[348392273,1736500260885,-500.0,0.00011639,2]
[348392274,1736500260896,-1806.5,0.00011639,2]
[348392275,1736500260905,-500.0,0.00011639,2]
[348392276,1736500260914,-2573.85,0.00011639,2]
[348392277,1736500260924,-434.396806,0.00011639,2]
[348392278,1736500260934,-1506.65,0.00011639,2]
[348392279,1736500260943,-736.48,0.00011639,2]
[348392280,1736500260954,-2801.83,0.00011639,2]
[348392281,1736500260963,-836.15,0.00011639,2]
[348392282,1736500260974,-887.99,0.00011639,2]
[348392283,1736500260984,-550.55,0.00011639,2]
[348392284,1736500260994,-2110.21,0.00011639,2]
[348392285,1736500261004,-986.48,0.00011639,2]
[348392286,1736500261014,-831.33,0.00011639,2]
[348392287,1736500261024,-433.582752,0.00011639,2]
[348392288,1736500261037,-1018.8,0.00011639,2]
[348392289,1736500261047,-500.0,0.00011639,2]
[348392290,1736500261057,-719.34,0.00011639,2]
[348392291,1736500261067,-771.41,0.00011639,2]
[348392292,1736500261078,-725.54,0.00011639,2]
[348392293,1736500261087,-1412.92,0.00011639,2]
[348392294,1736500261097,-500.0,0.00011639,2]
[348392295,1736500261106,-500.0,0.00011639,2]
[348392296,1736500261115,-1758.22,0.00011639,2]
[348392297,1736500261126,-837.48,0.00011639,2]
[348392298,1736500261135,-842.27,0.00011639,2]
[348392299,1736500261145,-1279.71,0.00011639,2]
[348392300,1736500261155,-563.06,0.00011639,2]
[348392301,1736500261164,-1085.96,0.00011639,2]
[348392302,1736500261174,-582.33,0.00011639,2]
[348392303,1736500261183,-817.69,0.00011639,2]
[348392304,1736500261193,-757.84,0.00011639,2]
[348392305,1736500261206,-1177.15,0.00011639,2]
[348392306,1736500261216,-500.0,0.00011639,2]
[348392307,1736500261226,-1322.53,0.00011639,2]
[348392308,1736500261236,-3269.91,0.00011639,2]
[348392309,1736500261246,-500.0,0.00011639,2]
[348392310,1736500261256,-962.73,0.00011639,2]
[348392311,1736500261266,-500.0,0.00011639,2]
[348392312,1736500261276,-500.0,0.00011639,2]
[348392313,1736500261285,-807.38,0.00011639,2]
[348392314,1736500261295,-510.99,0.00011639,2]
[348392315,1736500261305,-986.68,0.00011639,2]
[348392316,1736500261314,-671.81,0.00011639,2]
[348392317,1736500261324,-213.946268,0.0001164,2]
[348392318,1736500261334,-213.946268,0.0001164,2]
[348392319,1736500261343,-818.83,0.0001164,2]
[348392320,1736500261353,-500.0,0.0001164,2]
[348392321,1736500261363,-500.0,0.0001164,2]
[348392322,1736500261372,-1068.78,0.0001164,2]
[348392323,1736500261382,-2231.68,0.0001164,2]
[348392324,1736500261391,-579.53,0.0001164,2]
[348392325,1736500261401,-500.0,0.0001164,2]
[348392326,1736500261411,-779.52,0.0001164,2]
[348392327,1736500261608,-854.14,0.0001164,2]
[348392328,1736500261618,-761.22,0.0001164,2]
[348392329,1736500261627,-1070.48,0.0001164,2]
[348392330,1736500261636,-859.71,0.0001164,2]
[348392331,1736500261646,-855.15,0.0001164,2]
[348392332,1736500261655,-1327.36,0.0001164,2]
[348392333,1736500261665,-1140.93,0.0001164,2]
[348392334,1736500261674,-1385.89,0.0001164,2]
[348392335,1736500261683,-1284.44,0.0001164,2]
[348392336,1736500261693,-2300.59,0.0001164,2]
[348392337,1736500261703,-5548.96,0.0001164,2]
[348392338,1736500261712,-1000.0,0.0001164,2]
[348392339,1736500261721,-1015.53,0.0001164,2]
[348392340,1736500261731,-999.61,0.0001164,2]
[348392341,1736500261740,-500.0,0.0001164,2]
[348392342,1736500261749,-2178.98,0.0001164,2]
[348392343,1736500261759,-656.42,0.0001164,2]
[348392344,1736500261768,-754.55,0.0001164,2]
[348392345,1736500261777,-500.0,0.00011642,2]
[348392346,1736500261787,-500.0,0.00011642,2]
[348392347,1736500261796,-221.40352652,0.00011642,2]
[348392348,1736500261815,-500.0,0.00011642,2]
[348392349,1736500261826,-500.0,0.00011642,2]
[348392350,1736500261836,-500.0,0.00011642,2]
[348392351,1736500261846,-722.5,0.00011642,2]
[348392352,1736500261856,-647.0,0.00011642,2]
[348392353,1736500261865,-500.0,0.00011642,2]
[348392354,1736500261875,-847.26,0.00011642,2]
[348392355,1736500261886,-598.14,0.00011642,2]
[348392356,1736500261895,-747.48,0.00011642,2]
[348392357,1736500261905,-500.0,0.00011642,2]
[348392358,1736500261915,-500.0,0.00011642,2]
[348392359,1736500261924,-500.0,0.00011642,2]
[348392360,1736500261934,-676.21,0.00011642,2]
[348392361,1736500261944,-519.68,0.00011642,2]
[348392362,1736500261955,-684.89,0.00011642,2]
[348392363,1736500261965,-500.0,0.00011642,2]
[348392364,1736500261975,-678.52,0.00011642,2]
[348392365,1736500261986,-500.0,0.00011642,2]
[348392366,1736500261996,-500.0,0.00011642,2]
[348392367,1736500262006,-500.0,0.00011642,2]
[348392368,1736500262015,-500.0,0.00011642,2]
[348392369,1736500262025,-500.0,0.00011642,2]
[348392370,1736500262035,-502.22,0.00011642,2]
[348392371,1736500262045,-500.0,0.00011642,2]
[348392372,1736500262055,-726.78,0.00011642,2]
[348392373,1736500262064,-3609.52,0.00011642,2]
[348392374,1736500262074,-516.38,0.00011642,2]
[348392375,1736500262083,-500.0,0.00011642,2]
[348392376,1736500262093,-515.94,0.00011642,2]
[348392377,1736500262103,-699.66,0.00011642,2]
[348392378,1736500262112,-500.0,0.00011642,2]
[348392379,1736500262122,-780.6,0.00011642,2]
[348392380,1736500262131,-500.0,0.00011642,2]
[348392381,1736500262141,-500.0,0.00011642,2]
[348392382,1736500262150,-618.37,0.00011642,2]
[348392383,1736500262160,-798.41,0.00011642,2]
[348392384,1736500262169,-500.0,0.00011642,2]
[348392385,1736500262179,-780.76,0.00011642,2]
[348392386,1736500262188,-386.28697225,0.00011642,2]
[348392387,1736500262198,-839.05,0.00011642,2]
[348392388,1736500262209,-567.04,0.00011642,2]
[348392389,1736500262219,-500.0,0.00011642,2]
[348392390,1736500262228,-722.12,0.00011642,2]
[348392391,1736500262238,-727.02,0.00011642,2]
[348392392,1736500262248,-500.0,0.00011642,2]
[348392393,1736500262258,-799.7,0.00011642,2]
[348392394,1736500262267,-573.06,0.00011642,2]
[348392395,1736500262277,-541.26,0.00011642,2]
[348392396,1736500262287,-795.35,0.00011642,2]
[348392397,1736500262296,-700.8,0.00011642,2]
[348392398,1736500262305,-662.09,0.00011642,2]
[348392399,1736500262315,-500.0,0.00011642,2]
[348392400,1736500262324,-1084.74,0.00011642,2]
[348392401,1736500262334,-624.1,0.00011642,2]
[348392402,1736500262343,-630.17,0.00011642,2]
[348392403,1736500262353,-500.0,0.00011642,2]
[348392404,1736500262362,-773.65,0.00011642,2]
[348392405,1736500262372,-941.95,0.00011642,2]
[348392406,1736500262382,-500.0,0.00011642,2]
[348392407,1736500262391,-606.38,0.00011642,2]
[348392408,1736500262402,-741.93,0.00011642,2]
[348392409,1736500262412,-3198.72,0.00011642,2]
[348392410,1736500262422,-500.0,0.00011642,2]
[348392411,1736500262431,-924.89,0.00011642,2]
[348392412,1736500262441,-1983.31,0.00011642,2]
[348392413,1736500262451,-878.81,0.00011642,2]
[348392414,1736500262460,-2797.4,0.00011642,2]
[348392415,1736500262470,-660.89,0.00011642,2]
[348392416,1736500262481,-806.13,0.00011642,2]
[348392417,1736500262490,-1243.22,0.00011642,2]
[348392418,1736500262500,-500.0,0.00011642,2]
[348392419,1736500262510,-828.33,0.00011642,2]
[348392420,1736500262520,-1719.05,0.00011642,2]
[348392421,1736500262529,-874.32,0.00011642,2]
[348392422,1736500262539,-2691.14,0.00011642,2]
[348392423,1736500262548,-714.58,0.00011642,2]
[348392424,1736500262557,-1219.22,0.00011642,2]
[348392425,1736500262566,-500.0,0.00011642,2]
[348392426,1736500262576,-500.0,0.00011642,2]
[348392427,1736500262585,-876.12,0.00011642,2]
[348392428,1736500262595,-605.63,0.00011642,2]
[348392429,1736500262604,-500.0,0.00011642,2]
[348392430,1736500262613,-590.85,0.00011642,2]
[348392431,1736500262623,-500.0,0.00011642,2]
[348392432,1736500262633,-2537.41,0.00011642,2]
[348392433,1736500262642,-935.44,0.00011642,2]
[348392434,1736500262651,-704.75,0.00011642,2]
[348392435,1736500262660,-500.0,0.00011642,2]
[348392436,1736500262670,-575.78,0.00011642,2]
[348392437,1736500262679,-500.0,0.00011642,2]
[348392438,1736500262690,-635.55,0.00011642,2]
[348392439,1736500262699,-500.0,0.00011642,2]
[348392440,1736500262708,-755.21,0.00011642,2]
[348392441,1736500262718,-925.95,0.00011642,2]
[348392442,1736500262727,-855.59,0.00011642,2]
[348392443,1736500262737,-500.0,0.00011642,2]
[348392444,1736500262746,-1110.51,0.00011642,2]
[348392445,1736500262755,-500.0,0.00011642,2]
[348392446,1736500262765,-616.02,0.00011642,2]
[348392447,1736500262774,-675.22,0.00011642,2]
[348392448,1736500262783,-564.66,0.00011642,2]
[348392449,1736500262793,-657.44,0.00011642,2]
[348392450,1736500262802,-2479.92,0.00011642,2]
[348392451,1736500262812,-1002.37,0.00011642,2]
[348392452,1736500262821,-500.0,0.00011642,2]
[348392453,1736500262830,-656.74,0.00011642,2]
[348392454,1736500262840,-519.3,0.00011642,2]
[348392455,1736500262849,-500.0,0.00011642,2]
[348392456,1736500262859,-500.0,0.00011642,2]
[348392457,1736500262868,-1068.96,0.00011642,2]
[348392458,1736500262877,-906.27,0.00011643,2]
[348392459,1736500262887,-778.52,0.00011643,2]
[348392460,1736500262896,-1187.66,0.00011643,2]
[348392461,1736500262905,-1232.26,0.00011643,2]
[348392462,1736500262914,-1701.47,0.00011643,2]
[348392463,1736500262924,-1021.49,0.00011643,2]
[348392464,1736500262934,-3374.65,0.00011643,2]
[348392465,1736500262943,-1512.01,0.00011643,2]
[348392466,1736500262955,-3711.70775994,0.00011659,2]
[348392467,1736500262965,-150.0,0.0001166,2]
[348392468,1736500262975,-8302.06481414,0.00011685,2]
[348392469,1736500263500,-1262.5636531,0.00011685,2]
[348392470,1736500263662,-1160.29106136,0.00011685,2]
[348392471,1736500263673,-971.40398,0.00011685,2]
[348392472,1736500263685,-1604.37474875,0.00011685,2]
[348392473,1736500263696,-479.66,0.00011685,2]
[348392474,1736500263709,-577.36450855,0.00011685,2]
[348392475,1736500263728,-2745.31946308,0.00011685,2]
[348392476,1736500263737,-3180.90675343,0.00011692,2]
[348392477,1736500263747,-215.49738995,0.00011762,2]
[348392479,1736500988960,1046.22,8.219e-05,2]
[348392482,1736501136208,3315.2057649,8e-05,2]
[348392483,1736501136237,23725.6764529,8e-05,2]
[348392491,1736501276018,10000.0,0.00012,30]
[348392536,1736501432004,-250.0,9.098e-05,2]
[348392537,1736501432013,-245.42,9.499e-05,2]
[348392538,1736501432023,-1000.0,9.539e-05,2]
[348392539,1736501432032,-241.46,9.794e-05,2]
[348392540,1736501432041,-1094.58367231,9.836e-05,2]
[348392541,1736501432051,-251.821979,9.836e-05,2]
[348392542,1736501432060,-157.68863,9.836e-05,2]
[348392543,1736501432070,-156.37745,9.836e-05,2]
[348392544,1736501432079,-259.690652,9.836e-05,2]
[348392545,1736501432089,-156.32239,9.836e-05,2]
[348392546,1736501432098,-251.821979,9.837e-05,2]
[348392547,1736501432107,-259.690652,9.837e-05,2]
[348392548,1736501432116,-251.821979,9.838e-05,2]
[348392549,1736501432125,-259.690652,9.838e-05,2]
[348392550,1736501432134,-251.821979,9.839e-05,2]
[348392551,1736501432143,-259.690652,9.839e-05,2]
[348392552,1736501432152,-251.821979,9.84e-05,2]
[348392553,1736501432161,-251.821979,9.84e-05,2]
[348392554,1736501432170,-259.690652,9.84e-05,2]
[348392555,1736501432181,-259.690652,9.84e-05,2]
[348392556,1736501432190,-251.821979,9.841e-05,2]
[348392557,1736501432199,-251.821979,9.841e-05,2]
[348392558,1736501432208,-259.690652,9.841e-05,2]
[348392559,1736501432217,-259.690652,9.841e-05,2]
[348392560,1736501432226,-251.821979,9.844e-05,2]
[348392561,1736501432235,-259.690652,9.844e-05,2]
[348392562,1736501432244,-251.821979,9.846e-05,2]
[348392563,1736501432254,-259.690652,9.846e-05,2]
[348392564,1736501432263,-251.821979,9.847e-05,2]
[348392565,1736501432272,-259.690652,9.847e-05,2]
[348392566,1736501432281,-251.821979,9.854e-05,2]
[348392567,1736501432290,-259.690652,9.854e-05,2]
[348392568,1736501432299,-1000.0,9.898e-05,2]
[348392569,1736501432308,-811.56961401,9.974e-05,2]
[348392570,1736501432317,-811.56961401,9.979e-05,2]
[348392571,1736501432326,-811.56961401,9.985e-05,2]
[348392572,1736501432335,-811.56961401,9.992e-05,2]
[348392573,1736501432345,-150.0,9.994e-05,2]
[348392574,1736501432355,-811.56961401,9.995e-05,2]
[348392575,1736501432364,-500.0,9.995e-05,2]
[348392576,1736501432373,-500.0,9.995e-05,2]
[348392577,1736501432383,-500.0,9.995e-05,2]
[348392578,1736501432393,-500.0,9.995e-05,2]
[348392579,1736501432402,-895.06,9.995e-05,2]
[348392580,1736501432411,-500.0,9.995e-05,2]
[348392581,1736501432420,-500.0,9.995e-05,2]
[348392582,1736501432431,-500.0,9.995e-05,2]
[348392583,1736501432440,-500.0,9.995e-05,2]
[348392584,1736501432449,-500.0,9.995e-05,2]
[348392585,1736501432459,-500.0,9.995e-05,2]
[348392586,1736501432468,-500.0,9.995e-05,2]
[348392587,1736501432477,-529.9,9.995e-05,2]
[348392588,1736501432486,-500.0,9.995e-05,2]
[348392589,1736501432495,-500.0,9.995e-05,2]
[348392590,1736501432504,-500.0,9.995e-05,2]
[348392591,1736501432513,-500.0,9.995e-05,2]
[348392592,1736501432523,-500.0,9.995e-05,2]
[348392593,1736501432531,-500.0,9.995e-05,2]
[348392594,1736501432541,-500.0,9.995e-05,2]
[348392595,1736501432550,-500.0,9.995e-05,2]
[348392596,1736501432559,-500.0,9.995e-05,2]
[348392597,1736501432568,-500.0,9.995e-05,2]
[348392598,1736501432577,-500.0,9.995e-05,2]
[348392599,1736501432586,-500.0,9.995e-05,2]
[348392600,1736501432595,-500.0,9.995e-05,2]
[348392602,1736501432604,-500.0,9.995e-05,2]
[348392604,1736501432612,-500.0,9.995e-05,2]
[348392606,1736501432622,-500.0,9.995e-05,2]
[348392608,1736501432631,-500.0,9.995e-05,2]
[348392611,1736501432640,-500.0,9.995e-05,2]
[348392613,1736501432650,-500.0,9.995e-05,2]
[348392615,1736501432659,-500.0,9.995e-05,2]
[348392617,1736501432668,-500.0,9.995e-05,2]
[348392619,1736501432678,-558.47,9.995e-05,2]
[348392621,1736501432688,-500.0,9.995e-05,2]
[348392623,1736501432698,-500.0,9.995e-05,2]
[348392624,1736501432707,-500.0,9.995e-05,2]
[348392625,1736501432717,-500.0,9.995e-05,2]
[348392627,1736501432726,-602.65,9.995e-05,2]
[348392628,1736501432735,-500.0,9.995e-05,2]
[348392630,1736501432744,-634.03,9.995e-05,2]
[348392632,1736501432754,-580.14,9.995e-05,2]
[348392634,1736501432763,-500.0,9.995e-05,2]
[348392636,1736501432772,-500.0,9.995e-05,2]
[348392638,1736501432784,-500.0,9.995e-05,2]
[348392640,1736501432794,-500.0,9.995e-05,2]
[348392642,1736501432803,-500.0,9.995e-05,2]
[348392644,1736501432813,-500.0,9.995e-05,2]
[348392646,1736501432823,-674.15,9.995e-05,2]
[348392648,1736501432833,-500.0,9.995e-05,2]
[348392649,1736501432842,-500.0,9.995e-05,2]
[348392650,1736501432852,-1784.12,9.995e-05,2]
[348392651,1736501432862,-500.0,9.995e-05,2]
[348392652,1736501432871,-500.0,9.995e-05,2]
[348392653,1736501432881,-546.97,9.995e-05,2]
[348392654,1736501432891,-500.0,9.995e-05,2]
[348392655,1736501432901,-1125.79,9.995e-05,2]
[348392656,1736501432911,-984.97,9.995e-05,2]
[348392657,1736501432921,-500.0,9.995e-05,2]
[348392658,1736501432931,-500.0,9.995e-05,2]
[348392659,1736501432941,-601.73,9.995e-05,2]
[348392660,1736501432950,-6134.11,9.995e-05,2]
[348392661,1736501432959,-1342.86,9.995e-05,2]
[348392662,1736501432969,-500.0,9.995e-05,2]
[348392663,1736501432980,-697.16,9.995e-05,2]